Cogmind - Beta 10.2 @@@ ROGUE MODE // 2021.07.16 @ 20:30:22 Player: Burgers_Lettuce Result: Destroyed by S-27 Virus with Autogun Performance ------------- Evolutions (3) 1500 Regions Visited (5) 1000 Robots Destroyed (45) 225 Value Destroyed (1636) 1636 Prototype IDs (4) 80 Alien Tech Used (0) 0 Bonus (0) 0 TOTAL SCORE: 4441 Bonus ------- None Cogmind --------- Core Integrity 0/700 Matter 300/300 Energy 100/100 System Corruption 1% Temperature Cool (0) Movement Core (50) Location -7/Storage Parts ------- > --- POWER (1) -------- (None) > --- PROPULSION (3) --- (None) > --- UTILITY (5) ------ Advanced Visual Processing Unit > --- WEAPON (4) ------- (None) > --- INVENTORY (4) ---- (None) Peak State ------------ > --- POWER ------------ Improved Deuterium Engine > --- PROPULSION ------- Light Treads Light Treads Wheel > --- UTILITY ---------- Small Storage Unit Improved Targeting Computer Improved Targeting Computer Particle Charger Weapon Cycler > --- WEAPON ----------- Heavy Laser Improved Spread Laser Heavy Ion Cannon Gauss Rifle > --- INVENTORY -------- Wheel Wheel Advanced Visual Processing Unit EM Pulse Cannon Autogun Katana [Rating: 37] Favorites ----------- Power Light Ion Engine Engine Light Ion Engine Power Core Light Nuclear Core Propulsion Light Treads Treads Light Treads Leg Aluminum Leg Wheel Compact Wheel Flight Unit VTOL Module Utility Improved Targeting Computer Device Reclamation Unit Storage Small Storage Unit Processor Improved Targeting Computer Protection Core Shielding Weapon Autogun Energy Gun Heavy Laser Energy Cannon Advanced Beam Cannon Ballistic Gun Autogun Slashing Weapon Katana Build | -11 -10 -9 -8 -7 -7 ------- Run | Scr Mat Mat Mat Fac Sto Slots Evolved 6 | . . 2 2 2 . Power . | . . . . . . Propulsion 1 | . . . . 1 . Utility 3 | . . 1 2 . . Weapon 2 | . . 1 . 1 . Parts Attached 66 | 6 5 7 19 17 12 Power 6 | 1 . . 1 3 1 Engine 5 | 1 . . 1 3 . Core 1 | . . . . . 1 Reactor . | . . . . . . Propulsion 15 | 2 . 2 2 3 6 Treads 5 | 1 . 1 1 2 . Leg 2 | . . . . . 2 Wheel 6 | 1 . 1 1 1 2 Hover . | . . . . . . Flight 2 | . . . . . 2 Utility 20 | 1 1 1 10 6 1 Device 7 | . 1 . 1 5 . Storage 2 | 1 . . 1 . . Processor 8 | . . . 6 1 1 Hackware . | . . . . . . Protection 3 | . . 1 2 . . Artifact . | . . . . . . Weapon 25 | 2 4 4 6 5 4 Energy Gun 12 | 1 2 2 4 2 1 Energy Cannon 3 | . . 1 . 1 1 Ballistic Gun 9 | 1 2 1 2 2 1 Ballistic Cannon . | . . . . . . Launcher . | . . . . . . Special Weapon . | . . . . . . Impact Weapon . | . . . . . . Slashing Weapon 1 | . . . . . 1 Piercing Weapon . | . . . . . . Special Melee Weapon . | . . . . . . Unidentified Prototypes 4 | . . 1 2 1 . Parts Lost 34 | . . 4 5 1 24 Power 3 | . . . 1 . 2 Propulsion 13 | . . 2 1 1 9 Utility 7 | . . . 2 . 5 Weapon 11 | . . 2 1 . 8 Highest Loss Streak 11 | . . 2 3 1 11 Average Slot Usage (%) 88 | . 96 89 86 96 58 Engine 8 | . 14 11 7 7 3 Treads 10 | . 14 10 8 12 4 Wheel 8 | . 14 9 8 6 2 Device 7 | . 11 11 3 8 7 Storage 9 | . 14 11 9 7 5 Processor 10 | . . . 12 21 8 Protection 4 | . . 5 10 . . Energy Gun 13 | . 14 20 10 15 5 Energy Cannon 3 | . . 1 5 5 3 Ballistic Gun 9 | . 13 8 10 8 5 Naked Turns . | . . . . . . Heaviest Build 37 | 10 14 19 26 37 37 Greatest Support 40 | 20 16 20 16 40 40 Greatest Overweight (x) 7 | . . 1 7 3 3 Average Overweight (x) 1 | . . . 1 2 . Largest Inventory Capacity 6 | 6 6 6 6 6 6 Average Capacity 5 | 5 6 6 6 6 5 Most Carried 6 | 4 6 6 6 6 6 Average Carried 4 | 1 5 5 5 5 2 Final Capacity 6 | 6 6 6 6 6 4 Final Carried 6 | 4 6 4 6 6 . Class Distribution -------------------- 35% | Scavenger-Gunner 31% | Mutant 17% | Tank 8% | Gunner 6% | Scavenger-Mutant Dominant Class ---------------- Mutant | -10/Materials Tank | -9/Materials Tank | -8/Materials Scavenger-Gunner | -7/Factory Mutant | -7/Storage Resources | -11 -10 -9 -8 -7 -7 ----------- Run | Scr Mat Mat Mat Fac Sto Matter Collected 1293 | 188 56 105 505 220 219 Remotely . | . . . . . . Salvage Created 1904 | . 161 284 801 301 357 Parts 99 | . 14 12 40 16 17 Haulers Intercepted 1 | . 1 . . . . Recyclers Shooed 1 | . 1 . . . . Parts Field Recycled . | . . . . . . Retrieved Matter . | . . . . . . Parts Self-Destructed . | . . . . . . Prevented . | . . . . . . Kills | -11 -10 -9 -8 -7 -7 ------- Run | Scr Mat Mat Mat Fac Sto Combat Hostiles Destroyed 37 | . 4 7 13 4 9 Melee 1 | . . . . . 1 Guns 28 | . 4 7 8 3 6 Cannons 8 | . . . 5 1 2 Classes Destroyed 12 | . 4 1 5 2 . Worker 2 | . . . . 2 . Builder 1 | . . . 1 . . Tunneler 1 | . . . 1 . . Hauler 1 | . 1 . . . . Recycler 1 | . . . 1 . . Watcher 2 | . 1 . 1 . . Swarmer 6 | . 3 . . . 3 Grunt 21 | . 1 6 9 . 5 Duelist 1 | . . 1 . . . Sentry 7 | . . . 3 3 1 Hunter 1 | . . . 1 . . Programmer 1 | . . . . 1 . Best Kill Streak 7 | . 4 3 7 3 4 Combat Bots Only 4 | . 3 3 4 3 4 Max Kills in Single Turn 2 | . 1 2 2 2 1 Gunslinging 1 | . . . 1 . . Exploded . | . . . . . . Melee 1 | . . . . . 1 Uniques/NPCs Destroyed . | . . . . . . Combat | -11 -10 -9 -8 -7 -7 -------- Run | Scr Mat Mat Mat Fac Sto Damage Taken 3653 | . 108 345 982 144 2074 Core 993 | . . 46 242 42 663 Absorbed by Shields . | . . . . . . Core Remaining (%) 86 | 100 100 88 56 . . Volleys Fired 100 | . 12 15 39 7 27 Largest 4 | . 2 3 3 4 4 Hottest 237 | . 88 195 156 225 237 Shots Fired 256 | . 24 45 98 28 61 Gun 217 | . 24 45 77 21 50 Cannon 39 | . . . 21 7 11 Launcher . | . . . . . . Special . | . . . . . . Kinetic 97 | . 12 12 41 7 25 Thermal 151 | . 12 33 57 21 28 Explosive . | . . . . . . Electromagnetic 8 | . . . . . 8 Robot Hit Streak 22 | . 4 9 11 22 16 Robot Miss Streak 5 | . 4 5 4 1 4 Penetration Max . | . . . . . . Secondary Targets 3 | . 1 . 1 . 1 Max Gunslinging Chain 1 | . 1 . 1 . 1 Shots Hit Robots 174 | . 10 28 69 20 47 Core Hits 92 | . 7 14 37 11 23 Critical Hits 5 | . . . 3 . 2 Critical Kills 1 | . . . 1 . . Critical Parts Destroyed 4 | . . . 2 . 2 Melee Attacks 12 | . . . . . 12 Impact . | . . . . . . Slashing 12 | . . . . . 12 Piercing . | . . . . . . Sneak Attacks . | . . . . . . Combat Hostiles . | . . . . . . Follow-up Attacks . | . . . . . . Damage Inflicted 3198 | . 205 288 1167 503 1035 Guns 2305 | . 205 288 859 327 626 Cannons 658 | . . . 308 176 174 Explosions . | . . . . . . Melee 224 | . . . . . 224 Ramming 11 | . . . . . 11 Kinetic 850 | . 80 62 341 94 273 Thermal 1971 | . 125 226 826 409 385 Explosive . | . . . . . . Electromagnetic 142 | . . . . . 142 Impact . | . . . . . . Slashing 224 | . . . . . 224 Piercing . | . . . . . . Highest Corruption 1 | . . . . . 1 Average Corruption 1 | . . . . . 1 Corruption Purged . | . . . . . . Effects 1 | . . . . . 1 Message Errors 1 | . . . . . 1 Overload Shots . | . . . . . . Overflow Damage 14 | . . . . . 14 Projectiles 10 | . . . . . 10 Explosions . | . . . . . . Melee 4 | . . . . . 4 Knockbacks . | . . . . . . Impact . | . . . . . . Kinetic . | . . . . . . Secondary . | . . . . . . Self-Inflicted Damage 4 | . . . . . 4 Shots . | . . . . . . Rammed 3 | . . . . . 3 Targets Rammed 3 | . . . . . 3 Kicked . | . . . . . . Crushed . | . . . . . . Highest Temperature 681 | . 216 681 613 462 593 Average Temperature 218 | . 79 263 183 165 324 Received Heat Transfer 804 | . . 84 288 24 408 Effects 50 | . . 11 17 1 21 Shutdowns 9 | . . 4 2 . 3 Energy Bleed 6 | . . 2 3 . 1 Interference 12 | . . . 5 . 7 Matter Decay 7 | . . 1 3 . 3 Short Circuit 3 | . . . 2 . 1 Damage (minor) 7 | . . 4 . 1 2 Damage (major) 4 | . . . . . 4 Damage (core) 2 | . . . 2 . . Siege Activations . | . . . . . . Robots Corrupted . | . . . . . . Combat Hostiles . | . . . . . . Parts Fried . | . . . . . . Impact Corruptions . | . . . . . . Robots Melted . | . . . . . . Combat Hostiles . | . . . . . . Parts Melted 2 | . 1 1 . . . Heat Transferred 3647 | . 296 465 1558 666 662 Parts Sabotaged . | . . . . . . Parts Stolen . | . . . . . . Parts Stripped . | . . . . . . Power Chain Reactions . | . . . . . . Missiles Intercepted . | . . . . . . Alert | -11 -10 -9 -8 -7 -7 ------- Run | Scr Mat Mat Mat Fac Sto Peak Influence 318 | . 173 237 318 290 235 Initial 108 | . . 72 100 108 40 Average 150 | . 99 174 177 160 153 Maximum Alert Level 1 | . . 1 1 1 1 Low Security (%) 72 | 100 100 48 60 80 65 Level 1 27 | . . 51 39 19 34 Level 2 . | . . . . . . Level 3 . | . . . . . . Level 4 . | . . . . . . Level 5 . | . . . . . . High Security . | . . . . . . Max Security . | . . . . . . Squads Dispatched 10 | . 1 1 2 1 5 Investigation 3 | . . 1 1 . 1 Extermination 1 | . . . . 1 . Reinforcement 4 | . 1 . 1 . 2 Assault . | . . . . . . Garrison 2 | . . . . . 2 Intercept . | . . . . . . Construction Impeded . | . . . . . . Haulers Reinforced 1 | . . . . . 1 Stealth | -11 -10 -9 -8 -7 -7 --------- Run | Scr Mat Mat Mat Fac Sto Distress Signals 5 | . . . 2 . 3 Communications Jammed . | . . . . . . Distress Signals . | . . . . . . Times Spotted 74 | . 9 9 22 7 27 Peak Tracking Total 9 | . 3 4 4 4 9 Tactical Retreats 6 | . . 1 . . 5 Traps | -11 -10 -9 -8 -7 -7 ------- Run | Scr Mat Mat Mat Fac Sto Traps Triggered 4 | . 1 2 1 . . Indirectly . | . . . . . . Trap Hack Attempts . | . . . . . . Triggered . | . . . . . . Disarmed . | . . . . . . Reprogrammed . | . . . . . . Reused . | . . . . . . Traps Extracted . | . . . . . . Installed . | . . . . . . Triggered . | . . . . . . Machines | -11 -10 -9 -8 -7 -7 ---------- Run | Scr Mat Mat Mat Fac Sto Machines Disabled 5 | . 1 2 . . 2 Max in Single Turn 1 | . 1 1 . . 1 Machines Sabotaged . | . . . . . . Garrisons Compromised . | . . . . . . Overloaded Fab Kills . | . . . . . . Fab Network Shutdowns . | . . . . . . Hacking | -11 -10 -9 -8 -7 -7 --------- Run | Scr Mat Mat Mat Fac Sto Machines Accessed 9 | . 2 . 1 3 3 Terminals 5 | . 2 . . 1 2 Fabricators . | . . . . . . Repair Stations 1 | . . . 1 . . Recycling Units . | . . . . . . Scanalyzers 2 | . . . . 2 . Garrison Access 1 | . . . . . 1 Total Hacks 27 | . 7 . 2 7 11 Successful 9 | . 1 . 2 4 2 Failed 18 | . 6 . . 3 9 Catastrophic 3 | . 2 . . . 1 Database Lockouts . | . . . . . . Manual 19 | . 7 . . 2 10 Terminals 16 | . 7 . . 3 6 Fabricators . | . . . . . . Repair Stations 2 | . . . 2 . . Recycling Units . | . . . . . . Scanalyzers 4 | . . . . 4 . Garrison Access 5 | . . . . . 5 Terminal Hacks 2 | . . . . 1 1 Record 1 | . . . . 1 . Alert Level 1 | . . . . . 1 Fabricator Hacks . | . . . . . . Repair Station Hacks 2 | . . . 2 . . Scan Component 1 | . . . 1 . . Repair 1 | . . . 1 . . Recycling Unit Hacks . | . . . . . . Scanalyzer 2 | . . . . 2 . Insert Component 1 | . . . . 1 . Analyze 1 | . . . . 1 . Garrison Access Hacks . | . . . . . . Unauthorized Hacks 3 | . 1 . . 1 1 Terminals 3 | . 1 . . 1 1 Botnet 3 | . 1 . . 1 1 Fabricators . | . . . . . . Repair Stations . | . . . . . . Recycling Units . | . . . . . . Scanalyzers . | . . . . . . Garrison Access . | . . . . . . Data Cores Recovered . | . . . . . . Used . | . . . . . . Hacking Detections 9 | . 2 . 1 3 3 Full Trace Events 1 | . . . . . 1 Feedback Events . | . . . . . . Feedback Blocked . | . . . . . . Robot Schematics Acquired . | . . . . . . Robots Built . | . . . . . . Matter . | . . . . . . Time . | . . . . . . Total Robot Build Rating . | . . . . . . Part Schematics Acquired 1 | . . . . 1 . Parts Built . | . . . . . . Matter . | . . . . . . Time . | . . . . . . Total Part Build Rating . | . . . . . . Parts Repaired 1 | . . . 1 . . Time 26 | . . . 26 . . Parts Recycled . | . . . . . . Recycled Matter . | . . . . . . Retrieved Matter . | . . . . . . Retrieved Components . | . . . . . . Parts Scanalyzed 1 | . . . . 1 . Part Schematics Acquired 1 | . . . . 1 . Parts Damaged . | . . . . . . Bothacking | -11 -10 -9 -8 -7 -7 ------------ Run | Scr Mat Mat Mat Fac Sto Used RIF Installer . | . . . . . . Robots Hacked . | . . . . . . Non-combat . | . . . . . . Combat . | . . . . . . Robot Hacks Applied . | . . . . . . Relay Couplers Released . | . . . . . . Robots Rewired . | . . . . . . Allies Hacked . | . . . . . . Hacks Repelled . | . . . . . . Allies | -11 -10 -9 -8 -7 -7 -------- Run | Scr Mat Mat Mat Fac Sto Total Allies . | . . . . . . Largest Group . | . . . . . . Highest-Rated Group . | . . . . . . Highest-Rated Ally . | . . . . . . Total Orders . | . . . . . . Ally Attacks . | . . . . . . Total Damage . | . . . . . . Kills . | . . . . . . Allies Corrupted . | . . . . . . Allies Melted . | . . . . . . Intel | -11 -10 -9 -8 -7 -7 ------- Run | Scr Mat Mat Mat Fac Sto Robot Analysis Total . | . . . . . . Derelict Logs Recovered . | . . . . . . Drone Launches . | . . . . . . Drone Recoveries . | . . . . . . Exploration | -11 -10 -9 -8 -7 -7 ------------- Run | Scr Mat Mat Mat Fac Sto Turns Passed 1870 | 74 307 247 598 446 198 Spaces Moved 1229 | 60 260 139 358 327 85 Core 29 | 3 . . 4 . 22 Treads 42 | 5 . 6 . 17 14 Legs 5 | . . . . . 5 Wheels 1139 | 52 260 133 354 310 30 Hover . | . . . . . . Flight 14 | . . . . . 14 Fastest Speed 40 | 50 100 100 90 100 40 Average Speed 104 | 102 100 108 106 109 92 Slowest Speed 400 | 160 100 160 400 180 180 Overloaded Moves . | . . . . . . Propulsion Burnouts . | . . . . . . Robots Hopped 2 | . . . . . 2 Cave-ins Triggered . | . . . . . . Exploration Rate (%) 21 | 4 53 19 32 9 14 Regions Visited 5 Branch Regions 1 Pre-discovered Areas . | . . . . . . Known Exits Taken . | . . . . . . Unknown Exits Taken 5 | 1 1 1 1 1 . Scrap Searched . | . . . . . . Spaces Dug . | . . . . . . Terrain Destroyed 1 | . . . . . 1 Melee . | . . . . . . Projectile 1 | . . . . . 1 AOE . | . . . . . . Terrain Rammed . | . . . . . . Walls Destroyed . | . . . . . . Machines Disabled . | . . . . . . Actions | -11 -10 -9 -8 -7 -7 --------- Run | Scr Mat Mat Mat Fac Sto Total 1605 | 69 285 202 503 404 142 Wait 148 | . 1 38 71 33 5 Move 1220 | 59 259 138 357 326 81 Hop 2 | . . . . . 2 Pick Up 20 | 4 3 3 4 6 . Fast Attach 41 | 6 5 2 14 8 6 Attach 15 | . . 4 2 3 6 Detach 9 | . 2 . 4 3 . Swap 10 | . . 1 3 6 . Drop 25 | . 3 1 9 12 . Fire 100 | . 12 15 39 7 27 Melee 12 | . . . . . 12 Ram 3 | . . . . . 3 Kick . | . . . . . . Crush . | . . . . . . Escape Stasis . | . . . . . . Rewire . | . . . . . . Trap . | . . . . . . Miscellaneous . | . . . . . . Route ------- -11/Scrapyard -10/Materials -9/Materials -8/Materials -7/Factory -7/Storage History --------- Turn | Location | Event 16 | -11/Scrapyard | Discovered new exit (range 16) 75 | -11/Scrapyard | Entered Materials 301 | -10/Materials | Build established: Mutant 364 | -10/Materials | Discovered new exit (range 11) 382 | -10/Materials | Entered another Materials area 382 | -9/Materials | Evolved 2 slots: Utility x1, Weapon x1 606 | -9/Materials | Discovered new exit (range 4) 629 | -9/Materials | Entered another Materials area 629 | -8/Materials | Evolved 2 slots: Utility x2 666 | -8/Materials | Repaired Core Shielding 1046 | -8/Materials | Lost 3 parts (1n1u1w) 1214 | -8/Materials | Discovered new exit (range 15) 1227 | -8/Materials | Entered Factory 1227 | -7/Factory | Evolved 2 slots: Propulsion x1, Weapon x1 1338 | -7/Factory | Build established: Scavenger-Gunner 1667 | -7/Factory | Discovered new exit (range 5) 1673 | -7/Factory | Entered Storage 1693 | -7/Storage | Garrison activated, responded to threat 1755 | -7/Storage | Lost 5 parts (2n1u2w) 1790 | -7/Storage | Core integrity fell below 50% 1820 | -7/Storage | Lost 11 parts (1p3n3u4w) 1840 | -7/Storage | Core integrity fell below 20% 1871 | -7/Storage | Destroyed by S-27 Virus with Autogun Last Messages --------------- 01845_ Y-54 Guardian heat damages core (-13). 01846_ G-47 Trooper destroyed. 01847_ Y-54 Guardian heat damages Imp. Heat Sink. 01847_ Aluminum Leg destroyed. 01848_ Y-54 Guardian heat damages Lgt. Treads. 01848_ Acquired 44 matter. 01850_ Acquired VTOL Module. 01854_ Y-54 Guardian heat spikes uncontrollably. 01856_ K-01 Serf collects debris. 01856_ Acquired 19 matter. 01857_ VTOL Module destroyed. 01860_ Katana destroyed. 01867_ Slammed into A-02 Transporter. 01867_ Destabilizing: System corrupted (+1). 01868_ A-02 Transporter calls for reinforcements. 01868_ ALERT: Hostile activity reported, dispatching reinforcements to area. 01869_ NN>OV2N% ,HUOE45EMF%Y A&Y,Y:&WCOHFP 01869_ Slammed into A-02 Transporter. 01871_ K-01 Serf collects debris. Map ----- +----------------------------------------------------+ | ???????????????####?????????????????????????? | | ??????????????#""""#????????????????????????? | | ?????#####????#""R"#????????????????????????? | | ????? #####"" "############?????????????? | | ??????! ^ #?????????????? | | ??????? #?????????????? | | ???????? ^ " #?????????????? | | ????????????# ^"G" ########?????????????? | | ??????????### ^ " " #????????????????????? | | ??????????#"" #????????????????????? | | ??????????#"" #????????????????????? | | ??????????#" !! ####?????????????????? | | ??????????#"" !! #?????????????????? | | ??????????#"" !! k #?????????????????? | | ??????????### # """ #??????????? | | ????????????# + """ +??????????? | | ????????????# ########+## # """ #??????????? | | ????????????# #?????? ## #?????????????????? | | ????????????# #??????""##s#?????????????????? | | ????????????# #?????????# #?????????????????? | | ????????????# #?????????# #?????????????????? | | ????????????# #?????????# #?????????????????? | | ????????????# #?????????# #?????????????????? | | ????????????# #?????????#%#?????????????????? | | ????????????# #?????????#%#?????????????????? | | ????????????# #?????????#@#?????????????????? | | ????????????# #?????????# #?????????????????? | | ????????????# #?????????#a ?????????????????? | | ????????????# #?????????# ?????????????????? | | ?############ #####+##### ????????????????? | | ==[% +???????????? | | ###########"##### ########k???????????????? | | ?????????# %% ###????????? ???????????????? | | ?????????# % ""#????????? ??????????????? | | ?????????# T"#?????????? ??????????????? | | ????????# ""#?????????? ?????????????? | | ????????## ###??????????? ?????????????? | | ?????????# #????????????? ????????????? | | ?????????########????????????? ????????????? | | ??????????????????????????????? +???????????? | | ??????????????????????????????? #???????????? | | ????????????????????????????????#???????????? | | ????????????????????????????????????????????? | | ????????????????????????????????????????????? | | ????????????????????????????????????????????? | | ????????????????????????????????????????????? | | ????????????????????????????????????????????? | | ????????????????????????????????????????????? | | ????????????????????????????????????????????? | | ????????????????????????????????????????????? | +----------------------------------------------------+ Best States ------------- Heat Dissipation 34 Energy Generation 16 Energy Capacity 290 Matter Stores 300 Matter Capacity 300 Sight Range 20 Terrain Scan Density 60 ECM Strength 2 Armor Coverage 150 Core Shielding 20 Reclamation Efficiency 10 Weapon Cycling 15 Evasion (%) 50 Targeting Accuracy 18 Recoil Reduction 2 Particle Charging 15 Item Schematics ----------------- Weapon Cycler | -7/Factory | Scanalyzed Robot Schematics ------------------ None Fabricated ------------ Nothing Alien Tech Used ----------------- None Achievements -------------- None Challenges ------------ None Game ------ Seed TerrainGuidedMachine Manual? 0 Play Time 00:35:48 Cumulative 23.6 hours Start 2021.07.16 @ 19:19:06 End 2021.07.16 @ 20:30:22 Sessions 3 Manual Loads 0 Difficulty Rogue Special Mode None Game No. 23 Rogue 23 Adventurer 0 Explorer 0 Win Type - Total 0 Types 0/0/0/0/0/0/0/0/0 Lore% 14 Gallery% 24 Achievement% 21 Wizard Run 0 Options --------- ASCII 0 Keyboard 1 Movement Numpad Keybinds 0 Fullscreen 2 Font 36/X11 Map View 76x50 Tactical HUD 1 Map Filters NONE Filters NONE Steam 1 RUN: d9772a51-b672-40a1-93bf-2477484c16a5